bitfinex/quotes_BTCUSD_20241206
["timestamp","ask_amount","ask_price","bid_price","bid_amount"]
[1733496543236,6.15e-06,99280.0,99279.0,0.66071309]
[1733496543445,0.0008635,99310.0,99290.0,0.27045128]
[1733496543660,0.0008635,99310.0,99298.0,0.201413]
[1733496543873,0.0008635,99310.0,99291.0,0.10503154]
[1733496544117,0.0008635,99310.0,99291.0,0.01976519]
[1733496544329,0.0008635,99310.0,99291.0,0.04188581]
[1733496544546,0.0008635,99310.0,99291.0,0.01976519]
[1733496544804,0.201405,99303.0,99279.0,0.1242]
[1733496545043,0.00125888,99302.0,99298.0,0.004]
[1733496545345,0.00125887,99307.0,99281.0,0.02019833]
[1733496545569,0.10503154,99302.0,99279.0,0.1242]
[1733496545794,0.351393,99308.0,99280.0,0.20145]
[1733496545795,0.00125895,99301.0,99280.0,0.20145]
[1733496546048,0.10503154,99302.0,99279.0,0.1242]
[1733496546274,0.201409,99300.0,99279.0,0.1242]
[1733496546526,0.00125895,99299.0,99279.0,0.1242]
[1733496547260,0.201414,99298.0,99272.0,0.01981761]
[1733496547494,0.201436,99288.0,99265.0,0.0816]
[1733496547749,0.023,99296.0,99265.0,0.283079]
[1733496548000,0.0008635,99310.0,99265.0,0.283079]
[1733496548001,0.10629046,99295.0,99272.0,0.201464]
[1733496548259,0.0008635,99310.0,99279.0,0.201452]
[1733496548512,0.1062904,99309.0,99285.0,0.201438]
[1733496548742,0.004,99300.0,99280.0,0.50793154]
[1733496548971,0.004,99300.0,99285.0,0.201439]
[1733496549225,0.004,99300.0,99280.0,0.30648154]
[1733496549226,0.0008635,99310.0,99286.0,0.15582359]
[1733496549445,0.001,99295.0,99286.0,0.05079205]
[1733496549693,0.0008635,99310.0,99284.0,0.02006337]
[1733496549919,0.001,99296.0,99284.0,0.02006337]
[1733496550390,0.20264983,99309.0,99284.0,0.02006337]
[1733496550646,0.00125883,99309.0,99287.0,0.201436]
[1733496550881,0.00125883,99309.0,99290.0,0.20143]
[1733496551130,0.0068635,99310.0,99289.0,0.125]
[1733496551131,0.0068635,99310.0,99306.0,0.201397]
[1733496551413,0.0068635,99310.0,99308.0,0.201391]
[1733496551691,0.0068635,99310.0,99309.0,0.18353154]
[1733496551928,0.0008635,99340.0,99322.0,0.17870273]
[1733496552164,0.0008635,99340.0,99309.0,0.34303135]
[1733496552398,0.0008635,99340.0,99322.0,0.10503154]
[1733496552653,0.0008635,99340.0,99317.0,0.201373]
[1733496552654,0.00125832,99339.0,99317.0,0.201373]
[1733496552919,0.00144052,99340.0,99322.0,0.201364]
[1733496553178,0.00144052,99340.0,99318.0,0.10503154]
[1733496553450,0.00144052,99340.0,99319.0,0.11553469]
[1733496553680,0.00344052,99340.0,99325.0,0.201357]
[1733496553917,0.00344052,99340.0,99309.0,0.14528437]
[1733496553918,0.00144052,99340.0,99313.0,0.201383]
[1733496554151,0.00144052,99340.0,99309.0,0.14528437]
[1733496554152,0.10628998,99339.0,99309.0,0.14528437]
[1733496554385,0.10628998,99339.0,99267.0,0.08834698]
[1733496554386,0.25,99333.0,99297.0,0.08]
[1733496554644,0.15,99329.0,99291.0,0.0481]
[1733496555138,0.27045128,99330.0,99284.0,0.0815]
[1733496555139,0.2,99327.0,99290.0,0.02008859]
[1733496555140,0.2,99319.0,99272.0,0.045]
[1733496555369,0.10503154,99318.0,99298.0,0.201412]
[1733496555623,0.15,99331.0,99299.0,0.0201412]
[1733496555837,0.00125866,99333.0,99312.0,0.201385]
[1733496556063,0.00125866,99333.0,99300.0,0.39535128]
[1733496556064,0.00125844,99339.0,99317.0,0.201374]
[1733496556286,0.00144052,99340.0,99319.0,0.20137]
[1733496556287,0.00125844,99338.0,99319.0,0.20137]
[1733496556499,0.00144052,99340.0,99320.0,0.03064015]
[1733496556806,0.00144052,99340.0,99334.0,0.201339]
[1733496556986,0.00144052,99340.0,99332.0,0.201343]
[1733496557189,0.00144052,99340.0,99328.0,0.201353]
[1733496557418,0.00144052,99340.0,99322.0,0.0484]
[1733496557661,0.004,99339.0,99328.0,0.10503154]
[1733496557932,0.004,99339.0,99329.0,0.20135]
[1733496558139,0.00144052,99340.0,99323.0,0.22742917]
[1733496558324,0.00244052,99340.0,99328.0,0.201351]
[1733496559167,0.00244052,99340.0,99324.0,0.30639254]
[1733496559380,0.00244052,99340.0,99326.0,0.201357]
[1733496559597,0.00244052,99340.0,99325.0,0.06588287]
[1733496559803,0.00144052,99340.0,99325.0,0.10503154]
[1733496560019,0.001,99339.0,99325.0,0.30638854]
[1733496560235,0.001,99339.0,99323.0,0.201363]
[1733496560486,0.00144052,99340.0,99323.0,0.30639454]
[1733496560697,0.00144052,99340.0,99328.0,0.201352]
[1733496560909,0.00144052,99340.0,99326.0,0.0200962]
[1733496560910,0.00244052,99340.0,99326.0,0.0200962]
[1733496561118,0.00240052,99340.0,99327.0,0.04514887]
[1733496561335,0.00240052,99340.0,99329.0,0.201351]
[1733496561336,0.00140052,99340.0,99329.0,0.201351]
[1733496561540,0.00140052,99340.0,99330.0,0.37499975]
[1733496561780,0.201276,99366.0,99330.0,0.40400019]
[1733496561990,0.014841,99362.0,99331.0,0.04692453]
[1733496562208,0.01501392,99354.0,99345.0,0.201318]
[1733496562425,0.01501392,99354.0,99350.0,0.201308]
[1733496562641,0.01501392,99354.0,99332.0,0.13403198]
[1733496562642,0.01501392,99354.0,99345.0,0.02900044]
[1733496562864,0.01501392,99354.0,99346.0,0.201314]
[1733496563110,0.01501392,99354.0,99332.0,0.13733578]
[1733496563111,0.01501392,99354.0,99334.0,0.02900044]
[1733496563320,0.01701392,99354.0,99335.0,0.10503154]
[1733496563552,0.01501392,99354.0,99336.0,0.201336]
[1733496563769,0.01501392,99354.0,99340.0,0.01996124]
[1733496564003,0.01501392,99354.0,99341.0,0.201326]
[1733496564243,0.01501392,99354.0,99348.0,0.201311]
[1733496564534,0.01501392,99354.0,99348.0,0.20131]
[1733496564790,0.01501392,99354.0,99341.0,0.03263248]
[1733496565029,0.01501392,99354.0,99340.0,0.01996124]
[1733496565946,0.201302,99353.0,99340.0,0.01996124]
[1733496566170,0.15125818,99352.0,99327.0,0.0204861]
[1733496566610,0.01501392,99354.0,99328.0,0.10503154]
[1733496566823,0.01501392,99354.0,99328.0,0.11958015]
[1733496567265,0.01501392,99354.0,99335.0,0.201338]
[1733496567704,0.01501392,99354.0,99328.0,0.11958015]
[1733496567705,0.01501392,99354.0,99336.0,0.10503154]
[1733496567921,0.01701392,99354.0,99336.0,0.10503154]
[1733496568183,0.01701392,99354.0,99342.0,0.201323]
[1733496568418,0.01701392,99354.0,99342.0,0.30635454]
[1733496568419,0.01501392,99354.0,99342.0,0.30635454]
[1733496568852,0.002,99353.0,99342.0,0.30635454]
[1733496569062,0.01701392,99354.0,99343.0,0.201322]
[1733496569274,0.01901392,99354.0,99346.0,0.201316]
[1733496569495,0.01901392,99354.0,99345.0,0.02026058]
[1733496569712,0.01701392,99354.0,99345.0,0.02026058]
[1733496569922,0.01801392,99354.0,99345.0,0.02026058]
[1733496570137,0.01501392,99354.0,99345.0,0.02026058]
[1733496570346,0.01501392,99354.0,99346.0,0.10503154]
[1733496570566,0.01601392,99354.0,99330.0,0.201347]
[1733496570813,0.01601392,99354.0,99335.0,0.10503154]
[1733496571266,0.21731392,99354.0,99341.0,0.02042529]
[1733496571902,0.21631392,99354.0,99341.0,0.02042529]
[1733496572146,0.21731392,99354.0,99341.0,0.02042529]
[1733496572379,0.00125811,99353.0,99341.0,0.02042529]
[1733496572597,0.201314,99348.0,99330.0,0.201347]
[1733496572801,0.201314,99348.0,99343.0,0.0200689]
[1733496573034,0.01601392,99354.0,99343.0,0.0200689]
[1733496573035,0.00125819,99347.0,99343.0,0.0200689]
[1733496573243,0.201315,99347.0,99343.0,0.0200689]
[1733496573464,0.201316,99346.0,99343.0,0.0200689]
[1733496573706,0.15,99344.0,99321.0,0.0766]
[1733496573926,0.01501392,99354.0,99323.0,0.0199665]
[1733496574144,0.01501392,99354.0,99324.0,0.10503154]
[1733496574145,0.201304,99352.0,99324.0,0.10503154]
[1733496574373,0.201304,99352.0,99323.0,0.0199665]
[1733496574374,0.20134,99335.0,99323.0,0.0199665]
[1733496574599,0.201331,99339.0,99323.0,0.0199665]
[1733496574962,0.20132,99345.0,99324.0,0.201361]
[1733496574968,0.20132,99345.0,99323.0,0.0199665]
[1733496574969,0.201329,99340.0,99323.0,0.0199665]
[1733496575176,0.10503154,99351.0,99323.0,0.0199665]
[1733496575177,0.201308,99350.0,99323.0,0.0199665]
[1733496575377,0.201329,99340.0,99323.0,0.0199665]
[1733496575581,0.201332,99338.0,99323.0,0.0199665]
[1733496575788,0.201359,99326.0,99320.0,0.001727]
[1733496575991,0.15,99338.0,99320.0,0.001727]
[1733496576196,0.201362,99324.0,99320.0,0.001727]
[1733496576397,0.14056454,99337.0,99320.0,0.001727]
[1733496576600,0.15125851,99336.0,99320.0,0.001727]
[1733496576799,0.201342,99333.0,99320.0,0.001727]
[1733496577054,0.15125851,99332.0,99320.0,0.001727]
[1733496577223,0.15125851,99332.0,99320.0,0.002727]
[1733496577224,0.201364,99323.0,99320.0,0.002727]
[1733496577589,0.15125851,99332.0,99320.0,0.002727]
[1733496577590,0.201367,99321.0,99320.0,0.002727]
[1733496577787,0.3467969,99321.0,99320.0,0.002727]
[1733496577989,0.30639854,99321.0,99320.0,0.002727]
[1733496578598,0.30639854,99321.0,99320.0,0.001727]
[1733496578825,0.45639854,99321.0,99320.0,0.002727]
[1733496579852,0.201367,99321.0,99320.0,0.002727]
[1733496580085,0.201358,99326.0,99320.0,0.001727]
[1733496580307,0.01002194,99332.0,99320.0,0.001727]
[1733496580521,0.004,99321.0,99320.0,0.001727]
[1733496580955,0.00017296,99332.0,99320.0,0.047127]
[1733496581176,0.00017296,99332.0,99321.0,0.10503154]
[1733496581394,0.004,99326.0,99323.0,0.201363]
[1733496581606,0.00017296,99332.0,99324.0,0.10503154]
[1733496581818,0.00017296,99332.0,99325.0,0.05280037]
[1733496582035,0.00017296,99332.0,99331.0,0.201347]
[1733496582251,0.00117296,99332.0,99331.0,0.28372333]
[1733496582976,0.00217296,99332.0,99331.0,0.28372333]
[1733496583406,0.00017296,99332.0,99331.0,0.28372333]
[1733496583619,0.00117296,99332.0,99331.0,0.3435114]
[1733496583863,0.00117296,99332.0,99331.0,0.4242114]
[1733496584528,0.0148409,99354.0,99340.0,0.201327]
[1733496584741,0.0148409,99354.0,99331.0,0.18930856]
[1733496584959,0.201302,99353.0,99337.0,0.201334]
[1733496585168,0.201304,99352.0,99331.0,0.18630856]
[1733496585383,0.0148409,99354.0,99332.0,0.10503154]
[1733496585591,0.0148409,99354.0,99339.0,0.20133]
[1733496586020,0.0148409,99354.0,99340.0,0.28029458]
[1733496586232,0.0148409,99354.0,99353.0,0.201302]
[1733496586452,0.0008635,99360.0,99359.0,0.20129]
[1733496586665,0.0008635,99360.0,99359.0,0.30632154]
[1733496586873,0.0008635,99360.0,99359.0,0.3945493]
[1733496587757,0.0008635,99360.0,99359.0,0.3995493]
[1733496588184,0.0008635,99360.0,99359.0,0.4025493]
[1733496588398,0.0008635,99360.0,99359.0,0.41227318]
[1733496588609,0.0008635,99360.0,99359.0,0.43527318]
[1733496588828,0.0008635,99360.0,99359.0,0.67396901]
[1733496589043,0.0008635,99360.0,99359.0,0.67392886]
[1733496589278,0.0008635,99360.0,99359.0,0.63527318]
[1733496589487,0.20121,99399.0,99376.0,0.201253]
[1733496589695,0.241499,99395.0,99377.0,0.10503154]
[1733496589899,0.241499,99395.0,99360.0,0.0799723]
[1733496589900,0.201227,99390.0,99360.0,0.1799723]
[1733496590193,0.201227,99390.0,99372.0,0.201261]
[1733496590623,0.201236,99386.0,99378.0,0.02040849]
[1733496590840,0.0010387,99380.0,99378.0,0.02040849]
[1733496591724,0.0010387,99380.0,99378.0,0.22165949]
[1733496591931,0.0010387,99380.0,99379.0,0.201249]
[1733496592793,0.0010387,99380.0,99378.0,0.02340849]
[1733496593216,0.0010387,99380.0,99379.0,0.201249]
[1733496593431,0.0010387,99380.0,99379.0,0.31028054]
[1733496593636,0.0010387,99380.0,99379.0,0.37990074]
[1733496593852,0.0010387,99380.0,99379.0,0.003]
[1733496594278,0.0010387,99380.0,99379.0,0.10803154]
[1733496594490,0.0010387,99380.0,99379.0,0.10503154]
[1733496594697,0.0010387,99380.0,99379.0,0.10803154]
[1733496595351,0.0010387,99380.0,99379.0,0.003]
[1733496595596,0.0010387,99380.0,99378.0,0.02040849]
[1733496596229,0.0010387,99380.0,99379.0,0.004]
[1733496596459,0.0010387,99380.0,99378.0,0.02040849]
[1733496596883,0.0010387,99380.0,99379.0,0.005]
[1733496597327,0.0010387,99380.0,99379.0,0.004]
[1733496597545,0.15229654,99380.0,99379.0,0.004]
[1733496597970,0.15229654,99380.0,99378.0,0.003]
[1733496597971,0.351249,99379.0,99378.0,0.003]
[1733496597973,0.201249,99379.0,99378.0,0.007]
[1733496598187,0.201249,99379.0,99378.0,0.004]
[1733496598841,0.351249,99379.0,99378.0,0.004]
[1733496599073,0.0010387,99380.0,99378.0,0.004]
[1733496599289,0.0010387,99380.0,99378.0,0.00843]
[1733496599781,0.0010387,99380.0,99379.0,0.001]
[1733496600007,0.0010387,99380.0,99376.0,0.201255]
[1733496600245,0.0010387,99380.0,99375.0,0.02038364]
[1733496600701,0.0010387,99380.0,99375.0,0.22163964]
[1733496600928,0.0010387,99380.0,99375.0,0.42289564]
[1733496601171,0.0010387,99380.0,99377.0,0.201253]
[1733496601399,0.0010387,99380.0,99376.0,0.22398063]
[1733496601400,6e-05,99400.0,99378.0,0.10503154]
[1733496601665,0.05,99437.0,99381.0,0.201245]
[1733496601666,0.201164,99422.0,99381.0,0.201245]
[1733496601901,0.00103863,99410.0,99382.0,0.10503154]
[1733496602175,0.00103863,99410.0,99401.0,0.02032729]
[1733496602836,0.00103863,99410.0,99401.0,0.04248112]
[1733496603046,0.00103863,99410.0,99401.0,0.02032729]
[1733496603485,0.201189,99409.0,99401.0,0.02032729]
[1733496603719,0.00125739,99408.0,99376.0,0.32020309]
[1733496603987,0.20124,99384.0,99382.0,0.007]
[1733496604211,0.15125788,99383.0,99382.0,0.007]
[1733496604435,0.15125788,99383.0,99365.0,0.01998646]
[1733496604664,0.00125788,99383.0,99365.0,0.01998646]
[1733496605118,0.201245,99381.0,99356.0,0.08865568]
[1733496605337,0.10503154,99383.0,99356.0,0.06225571]
[1733496605338,0.15125793,99380.0,99356.0,0.06225571]
[1733496605611,0.201271,99369.0,99358.0,0.01996835]
[1733496605830,0.00125808,99368.0,99346.0,0.08865568]
[1733496606050,0.20129,99359.0,99350.0,0.02180744]
[1733496606481,0.201299,99355.0,99350.0,0.02180744]
[1733496606701,0.201302,99353.0,99350.0,0.0018993]
[1733496606920,0.201306,99351.0,99350.0,0.0018993]
[1733496608017,0.201306,99351.0,99350.0,0.0068993]
[1733496608242,0.45633754,99351.0,99350.0,0.0028993]
[1733496608470,0.50633754,99351.0,99350.0,0.0018993]
[1733496608685,0.201326,99341.0,99340.0,0.0017266]
[1733496608899,0.45635754,99341.0,99340.0,0.0017266]
[1733496609121,0.05,99376.0,99340.0,0.0017266]
[1733496609397,0.201245,99381.0,99348.0,0.201311]
[1733496609607,0.201245,99381.0,99341.0,0.15473154]
[1733496609608,0.00125811,99375.0,99350.0,0.001]
[1733496609841,0.10503154,99374.0,99341.0,0.0497]
[1733496610054,0.201294,99358.0,99341.0,0.0497]
[1733496610270,0.201302,99354.0,99341.0,0.0497]
[1733496610488,0.20132,99345.0,99340.0,0.0017266]
[1733496610709,0.00125835,99344.0,99340.0,0.0017266]
[1733496610922,0.201308,99350.0,99340.0,0.0017266]
[1733496610923,0.201322,99343.0,99340.0,0.0017266]
[1733496611144,0.00125835,99342.0,99340.0,0.0017266]
[1733496611585,0.201312,99348.0,99340.0,0.0017266]
[1733496611802,0.201316,99346.0,99340.0,0.0017266]
[1733496612009,0.00125835,99345.0,99340.0,0.0027266]
[1733496612434,0.30634054,99350.0,99340.0,0.0027266]
[1733496612435,0.201308,99350.0,99340.0,0.0027266]
[1733496612648,0.00125826,99349.0,99340.0,0.0027266]
[1733496612865,0.201295,99357.0,99340.0,0.0027266]
[1733496613084,0.402552,99366.0,99340.0,0.0037266]
[1733496613300,0.201292,99358.0,99340.0,0.0017266]
[1733496613734,0.05,99355.0,99340.0,0.0027266]
[1733496613953,0.351326,99341.0,99340.0,0.0027266]
[1733496614169,0.50635754,99341.0,99340.0,0.0017266]
[1733496614385,0.60712489,99341.0,99340.0,0.0017266]
[1733496615071,0.45635754,99341.0,99340.0,0.0017266]
[1733496615280,0.75735754,99341.0,99340.0,0.0017266]
[1733496615487,0.80735754,99341.0,99340.0,0.0017266]
[1733496615734,0.201381,99315.0,99307.0,0.0796]
[1733496615944,0.00125868,99314.0,99293.0,0.08]
[1733496616169,0.201383,99313.0,99303.0,0.02010006]
[1733496616380,0.05,99334.0,99293.0,0.08]
[1733496616381,0.201387,99311.0,99293.0,0.08]
[1733496616602,0.2,99334.0,99300.0,0.02011012]
[1733496616603,0.15,99334.0,99300.0,0.02011012]
[1733496616811,0.201356,99327.0,99301.0,0.201406]
[1733496617043,0.30638754,99327.0,99302.0,0.02215161]
[1733496617263,0.201364,99323.0,99302.0,0.02215161]
[1733496617483,0.15,99334.0,99300.0,0.02011012]
[1733496617484,0.15,99321.0,99300.0,0.02011012]
[1733496617697,0.15,99321.0,99293.0,0.08057702]
[1733496617698,0.201394,99308.0,99293.0,0.08057702]
[1733496617931,0.201419,99296.0,99293.0,0.00057702]
[1733496618139,0.201422,99294.0,99293.0,0.00057702]
[1733496618363,0.30645354,99294.0,99293.0,0.00057702]
[1733496618587,0.45645354,99294.0,99293.0,0.00057702]
[1733496619913,0.45645354,99294.0,99293.0,0.00257702]
[1733496620338,0.45645354,99294.0,99293.0,0.00357702]
[1733496620556,0.45645354,99294.0,99293.0,0.00057702]
[1733496620785,0.45945354,99294.0,99293.0,0.00057702]
[1733496621025,0.45945354,99294.0,99293.0,0.00157702]
[1733496621237,0.45645354,99294.0,99293.0,0.00157702]
[1733496621671,0.45845354,99294.0,99293.0,0.00157702]
[1733496622356,0.57085354,99294.0,99293.0,0.00057702]
[1733496622579,0.62085354,99294.0,99293.0,0.00057702]
[1733496622808,0.61885354,99294.0,99293.0,0.00057702]
[1733496623231,0.62964629,99294.0,99293.0,0.00057702]
[1733496623451,0.62964629,99294.0,99293.0,2e-08]
[1733496623686,0.62964629,99294.0,99270.0,0.0017276]
[1733496623687,0.401468,99271.0,99270.0,0.0017276]
[1733496623899,0.57949954,99271.0,99270.0,0.0017276]
[1733496624827,0.61889954,99271.0,99270.0,6e-07]
[1733496625070,0.351509,99251.0,99250.0,0.0017294]
[1733496625512,0.45654054,99251.0,99250.0,0.0017294]
[1733496626371,0.50654054,99251.0,99250.0,0.0017294]
[1733496626595,0.52954054,99251.0,99250.0,0.00190236]
[1733496626814,0.53154054,99251.0,99250.0,0.00190236]
[1733496627045,0.58154054,99251.0,99250.0,0.00190236]
[1733496627258,0.58154054,99251.0,99250.0,3.6e-07]
[1733496627259,0.67999489,99251.0,99250.0,3.6e-07]
[1733496627502,0.67999489,99251.0,99230.0,0.0017296]
[1733496627503,0.551529,99241.0,99230.0,0.0017296]
[1733496627724,0.551529,99241.0,99240.0,0.00017363]
[1733496627725,0.82956054,99241.0,99240.0,0.00017363]
[1733496627944,0.94733215,99241.0,99240.0,0.00017363]
[1733496628155,0.97002979,99241.0,99240.0,0.00017363]
[1733496628373,0.97002979,99241.0,99240.0,6.3e-07]
[1733496628600,0.97002979,99241.0,99230.0,0.0017296]
[1733496628601,0.740949,99231.0,99230.0,0.0017296]
[1733496628879,0.98945564,99231.0,99230.0,0.00190267]
[1733496629088,0.77958054,99231.0,99230.0,0.00190267]
[1733496629303,0.82958054,99231.0,99230.0,0.00190267]
[1733496629513,0.77958054,99231.0,99230.0,0.00190267]
[1733496630187,0.78858054,99231.0,99230.0,0.00290267]
[1733496630416,0.78858054,99231.0,99230.0,0.00190267]
[1733496630915,0.12303154,99231.0,99230.0,0.00290267]
[1733496631144,0.17129142,99231.0,99230.0,0.00190267]
[1733496631378,0.16229142,99231.0,99230.0,0.00190267]
[1733496631608,0.15629142,99231.0,99230.0,0.00190267]
[1733496631839,0.29381045,99231.0,99230.0,0.00190267]
[1733496632050,0.29255035,99231.0,99230.0,0.00190267]
[1733496632302,0.37803154,99231.0,99230.0,0.00190267]
[1733496632564,0.35,99221.0,99210.0,0.0017286]
[1733496632822,0.45660154,99221.0,99210.0,0.0017286]
[1733496633085,0.10503154,99221.0,99210.0,0.0017286]
[1733496633315,0.015,99231.0,99217.0,0.0775]
[1733496633550,0.25,99246.0,99220.0,0.009653]
[1733496633551,0.10629144,99230.0,99220.0,0.009653]
[1733496633785,0.10629144,99230.0,99220.0,0.010653]
[1733496633786,0.006,99221.0,99220.0,0.010653]
[1733496634028,0.201553,99229.0,99220.0,0.00273]
[1733496634253,0.002,99221.0,99220.0,0.00273]
[1733496634479,0.00325987,99221.0,99220.0,0.00273]
[1733496634739,0.00125972,99230.0,99220.0,0.00173]
[1733496635015,0.00017259,99244.0,99221.0,0.10503154]
[1733496635016,0.00143228,99244.0,99221.0,0.10503154]
[1733496635559,0.201558,99227.0,99220.0,0.00173]
[1733496635561,0.25,99239.0,99220.0,0.00173]
[1733496635814,0.20157,99221.0,99220.0,0.00173]
[1733496636042,0.11103154,99221.0,99220.0,0.00273]
[1733496636272,0.11103154,99221.0,99220.0,0.00173]
[1733496636273,0.001,99221.0,99220.0,0.00173]
[1733496636731,0.201545,99234.0,99220.0,0.00173]
[1733496636732,0.403129,99224.0,99220.0,0.00173]
[1733496636960,0.00125988,99223.0,99220.0,0.00173]
[1733496637218,0.351557,99228.0,99220.0,0.00173]
[1733496637473,0.006,99221.0,99220.0,0.00173]
[1733496637740,0.00225988,99221.0,99220.0,0.00173]
[1733496637986,0.00125987,99221.0,99220.0,0.00173]
[1733496638237,0.20282987,99221.0,99220.0,0.00173]
[1733496638495,0.20157,99221.0,99220.0,0.00173]
[1733496638921,0.006,99224.0,99220.0,0.00173]
[1733496639168,0.10503154,99223.0,99220.0,0.00173]
[1733496639673,0.004,99221.0,99220.0,0.00173]
[1733496639902,0.00125986,99221.0,99220.0,0.00173]
[1733496640129,0.0008643,99230.0,99220.0,0.00173]
[1733496640130,0.00212416,99230.0,99220.0,0.00173]
[1733496640389,0.002,99223.0,99220.0,0.00173]
[1733496640838,0.005,99224.0,99220.0,0.00173]
[1733496641067,0.005,99221.0,99220.0,0.00173]
[1733496641293,0.001,99221.0,99220.0,0.00173]
[1733496641812,0.001,99221.0,99220.0,0.04693]
[1733496642059,0.0008643,99230.0,99229.0,0.201553]
[1733496642286,0.0008643,99230.0,99229.0,0.281453]
[1733496642734,0.0008643,99230.0,99229.0,0.0799]
[1733496643159,0.201437,99287.0,99231.0,0.201549]
[1733496643160,0.0404,99295.0,99229.0,0.18493154]
[1733496643161,0.05,99310.0,99273.0,0.201464]
[1733496643329,0.05,99307.0,99274.0,0.1251]
[1733496643536,0.35629062,99309.0,99274.0,0.1251]
[1733496643537,0.10629062,99306.0,99274.0,0.1251]
[1733496643733,0.004033,99293.0,99274.0,0.1251]
[1733496644197,0.00125908,99305.0,99274.0,0.1251]
[1733496644198,0.201401,99304.0,99283.0,0.201443]
[1733496644372,0.00057713,99310.0,99275.0,0.10503154]
[1733496644373,0.00125886,99303.0,99285.0,0.20144]
[1733496644625,0.00125886,99303.0,99284.0,0.0201443]
[1733496644626,0.10503154,99302.0,99284.0,0.0201443]
[1733496644861,0.10503154,99302.0,99276.0,0.201458]
[1733496644862,0.00125901,99301.0,99276.0,0.201458]
[1733496645059,0.10629051,99300.0,99274.0,0.1251]
[1733496645264,0.20266997,99299.0,99274.0,0.1251]
[1733496645471,0.10629051,99298.0,99275.0,0.02042202]
[1733496645684,0.10629051,99298.0,99274.0,0.1251]
[1733496645685,0.20267411,99297.0,99274.0,0.1251]
[1733496645906,0.10629072,99296.0,99274.0,0.1251]
[1733496646103,0.201455,99278.0,99274.0,0.0809]
[1733496646227,0.201458,99276.0,99274.0,0.0799]
[1733496646432,0.201464,99273.0,99260.0,0.0763]
[1733496646637,0.201483,99264.0,99260.0,0.0763]
[1733496646877,0.04392561,99292.0,99260.0,0.0763]
[1733496647074,0.04392561,99292.0,99274.0,0.001]
[1733496647075,0.15,99287.0,99274.0,0.001]
[1733496647302,0.20146,99275.0,99274.0,0.001]
[1733496647501,0.10503154,99275.0,99260.0,0.0763]
[1733496647729,0.00017307,99287.0,99260.0,0.0783]
[1733496647730,0.10629084,99274.0,99260.0,0.0783]
[1733496647874,0.001,99264.0,99260.0,0.0843]
[1733496649086,0.201484,99263.0,99260.0,0.0823]
[1733496649294,0.00125935,99262.0,99260.0,0.0823]
[1733496649510,0.201489,99261.0,99260.0,0.0823]
[1733496649731,0.201349,99261.0,99260.0,0.0763]
[1733496649957,0.201478,99266.0,99260.0,0.0763]
[1733496650165,0.15,99265.0,99260.0,0.0803]
[1733496650376,0.15,99263.0,99260.0,0.0803]
[1733496650617,0.20374535,99262.0,99260.0,0.0833]
[1733496650830,0.001,99262.0,99260.0,0.0833]
[1733496651042,0.201489,99261.0,99260.0,0.0813]
[1733496651665,0.30652054,99261.0,99260.0,0.005]
[1733496651900,0.45652054,99261.0,99260.0,0.005]
[1733496652336,0.201535,99239.0,99229.0,0.0825]
[1733496652554,0.16303299,99239.0,99229.0,0.0825]
[1733496652768,0.201537,99237.0,99229.0,0.0825]
[1733496652981,0.00084239,99236.0,99229.0,0.0825]
[1733496653163,0.201537,99237.0,99229.0,0.0825]
[1733496653417,0.201537,99237.0,99235.0,0.02005269]
[1733496653632,0.201515,99248.0,99235.0,0.02005269]
[1733496653851,0.201534,99239.0,99235.0,0.02022528]
[1733496654760,0.00084239,99238.0,99235.0,0.02022528]
[1733496654985,0.201537,99237.0,99235.0,0.00017259]
[1733496655212,0.15084239,99236.0,99235.0,0.00017259]
[1733496655431,0.25587393,99236.0,99235.0,0.00017259]
[1733496655655,0.25503154,99236.0,99235.0,0.00017259]
[1733496656116,0.25503154,99236.0,99235.0,0.00217259]
[1733496656352,0.57803154,99236.0,99235.0,0.00217259]
[1733496656574,0.57803154,99236.0,99235.0,0.00017259]
[1733496657028,0.57803154,99236.0,99235.0,0.00417259]
[1733496657239,0.57803154,99236.0,99235.0,0.00217259]
[1733496657462,0.57803154,99236.0,99235.0,0.00317259]
[1733496657463,0.58503154,99236.0,99235.0,0.00317259]
[1733496657679,0.51203154,99236.0,99235.0,0.00317259]
[1733496657900,0.201523,99244.0,99235.0,0.00217259]
[1733496658121,0.007,99236.0,99235.0,0.00317259]
[1733496658587,0.007,99236.0,99235.0,0.00117259]
[1733496658801,0.012,99236.0,99235.0,0.00117259]
[1733496659237,0.007,99236.0,99235.0,0.00017259]
[1733496659462,0.10587393,99236.0,99235.0,0.00017259]
[1733496659714,0.11787393,99236.0,99235.0,0.00117259]
[1733496659946,0.11787393,99236.0,99235.0,0.00017259]
[1733496660186,0.12187393,99236.0,99235.0,0.00017259]
[1733496660420,0.11287393,99236.0,99235.0,0.00017259]
[1733496660652,0.00484239,99236.0,99235.0,0.00017259]
[1733496660926,0.008,99236.0,99235.0,0.00017259]
[1733496661679,0.251468,99271.0,99235.0,0.00017259]
[1733496661680,0.06052389,99304.0,99236.0,0.2]
[1733496661932,0.201408,99301.0,99268.0,0.1254]
[1733496662165,0.25,99314.0,99276.0,0.201458]
[1733496662429,0.201407,99302.0,99277.0,0.201456]
[1733496662681,0.201418,99296.0,99276.0,0.201457]
[1733496662907,0.2014,99305.0,99268.0,0.1254]
[1733496662908,0.10503154,99295.0,99278.0,0.201454]
[1733496663157,0.00084239,99299.0,99285.0,0.201438]
[1733496663387,0.00084239,99298.0,99280.0,0.20145]
[1733496663843,0.00084239,99298.0,99279.0,0.02027897]
[1733496664091,0.003,99296.0,99279.0,0.02027897]
[1733496664357,0.10587393,99295.0,99279.0,0.02027897]
[1733496664587,0.10587393,99295.0,99269.0,0.01964855]
[1733496664588,0.201449,99281.0,99269.0,0.01964855]
[1733496664810,0.00084239,99280.0,99269.0,0.03415341]
[1733496665052,0.15,99288.0,99269.0,0.03415341]
[1733496665053,0.00084239,99287.0,99269.0,0.03415341]
[1733496665289,0.15,99285.0,99269.0,0.01964855]
[1733496665510,0.20228439,99284.0,99269.0,0.01964855]
[1733496666234,0.20228439,99284.0,99269.0,0.002]
[1733496666235,0.10503154,99283.0,99269.0,0.002]
[1733496666463,0.00084239,99282.0,99262.0,0.01999305]
[1733496666689,0.00980686,99311.0,99270.0,0.27070575]
[1733496666917,0.00980686,99311.0,99269.0,0.01754658]
[1733496666918,0.201409,99300.0,99271.0,0.00100718]